fUSD/lending_fUSD_20240319
["ID","MTS","AMOUNT","RATE_DAILY","PERIOD"]
[319553520,1710849044070,-1375.76273349,0.000366,2]
[319553521,1710849044081,-1375.76273345,0.000366,2]
[319553522,1710849044091,-1375.76273345,0.000366,2]
[319553523,1710849044100,-1375.76273345,0.000366,2]
[319553524,1710849044114,-1511.15867982,0.000366,2]
[319553525,1710849044123,-1511.15867974,0.000366,2]
[319553526,1710849044133,-1511.15867974,0.000366,2]
[319553527,1710849044142,-1511.15867974,0.000366,2]
[319553528,1710849044152,-168.37297434,0.0003678,9]
[319553529,1710849044162,-153.02334132,0.0003678,2]
[319553530,1710849044172,-4237.08063049,0.0003678,9]
[319553531,1710849044182,-345.7306652,0.0003678,9]
[319553532,1710849044194,-168.53,0.0003687,2]
[319553534,1710849044204,-168.53,0.0003687,2]
[319553536,1710849044214,-188.5057295,0.00036878,120]
[319553538,1710849044224,-500.0,0.00036878,2]
[319553539,1710849044235,-879.1582705,0.00036878,4]
[319553540,1710849044245,-11702.89078678,0.00036878,4]
[319553541,1710849044255,-1923.9,0.00036878,4]
[319553542,1710849044266,-155.0,0.00036878,3]
[319553543,1710849044276,-7376.0521519,0.00036878,2]
[319553544,1710849044286,-271.55242602,0.00036878,4]
[319553545,1710849044297,-563.47441561,0.00036878,4]
[319553546,1710849044308,-703.72919922,0.00036879,15]
[319553547,1710849044318,-155.0,0.00036879,4]
[319553548,1710849044330,-713.75753608,0.00036879,4]
[319553549,1710849044341,-2001.58563884,0.00036879,4]
[319553550,1710849044351,-1000.0,0.00036879,2]
[319553551,1710849044362,-1000.0,0.00036879,2]
[319553552,1710849044371,-1000.0,0.00036879,2]
[319553553,1710849044381,-1000.0,0.00036879,2]
[319553554,1710849044391,-1000.0,0.00036879,2]
[319553555,1710849044401,-1000.0,0.00036879,2]
[319553556,1710849044409,-1000.0,0.00036879,2]
[319553557,1710849044420,-624.75173887,0.00036879,2]
[319553558,1710849044430,-40549.82671249,0.0003688,2]
[319553559,1710849044442,-31519.32673702,0.0003688,2]
[319553560,1710849044536,-3800.59638165,0.0003688,2]
[319553561,1710849044548,-705.78828004,0.0003688,2]
[319553562,1710849044561,-2422.96722748,0.0003688,2]
[319553563,1710849044573,-17344.48838952,0.0003688,2]
[319553564,1710849044588,-8759.16085758,0.0003688,2]
[319553566,1710849045864,-26152.42392115,0.0003688,2]
[319553567,1710849045919,-1226.09302494,0.0003688,2]
[319553568,1710849045965,-6276.09370683,0.0003688,2]
[319553569,1710849046094,-827.16530006,0.0003688,2]
[319553570,1710849046105,-7208.14697548,0.0003688,2]
[319553571,1710849046119,-261.59507853,0.0003688,2]
[319553589,1710849046803,-504.02019,0.0003688,2]
[319553590,1710849046816,-44736.31889656,0.0003688,2]
[319553591,1710849046835,-716.40000001,0.0003688,2]
[319553592,1710849046848,-3728.50088279,0.0003688,2]
[319553593,1710849081615,9178.99675879,9e-05,2]
[319553597,1710849093368,11871.57861598,0.0001,2]
[319553600,1710849098248,962.44906703,0.00011,2]
[319553607,1710849118391,543.3403171,0.00011898,2]
[319553654,1710849400511,543.0,0.0002199,30]
[319553693,1710850052729,787.97603515,0.0001,2]
[319553730,1710850232444,-440.7574352,0.00012489,2]
[319553731,1710850232454,-2828.26856842,0.0001249,2]
[319553732,1710850232489,-7451.06820546,0.0001249,2]
[319553733,1710850232505,-9376.2255661,0.0001249,2]
[319553734,1710850232516,-893.53376025,0.0001249,2]
[319553735,1710850232528,-531.69844972,0.0001249,2]
[319553736,1710850232539,-238.20545005,0.0001249,2]
[319553737,1710850232549,-285.4231173,0.000125,2]
[319553738,1710850232558,-2770.88053214,0.000137,2]
[319553739,1710850232567,-260.97426303,0.000139,2]
[319553740,1710850232576,-155.0,0.00013998,2]
[319553741,1710850232586,-155.0,0.00013998,2]
[319553742,1710850232595,-155.0,0.00013998,2]
[319553743,1710850232605,-193.48944884,0.00013998,2]
[319553744,1710850232614,-444.58223786,0.00013998,2]
[319553745,1710850232623,-323.11779733,0.00013998,2]
[319553746,1710850232633,-3068.72715347,0.00013999,2]
[319553747,1710850232702,-4056.4589552,0.00013999,2]
[319553748,1710850232712,-1874.03869476,0.00013999,2]
[319553749,1710850232722,-27853.86921811,0.00014,2]
[319553750,1710850232733,-2604.0,0.00014,2]
[319553751,1710850232746,-3153.9,0.00014,2]
[319553752,1710850232758,-335.49,0.00014,2]
[319553759,1710850237943,-126200.0,0.00014,2]
[319553760,1710850237954,-4203.73320046,0.00014,2]
[319553766,1710850238023,-33619.84210189,0.00014,2]
[319553770,1710850238058,-44900.96065,0.00014,2]
[319553772,1710850238070,-820.17749397,0.00014,2]
[319553775,1710850238081,-651.59,0.00014,2]
[319553777,1710850238093,-5052.16,0.00014,2]
[319553789,1710850238204,-6336.3847153,0.00014,2]
[319553792,1710850238220,-1340.01178555,0.00014,2]
[319553794,1710850238231,-262.65011809,0.00014,2]
[319553798,1710850238272,-969.47430886,0.00014,2]
[319553799,1710850238283,-12679.58311709,0.00014,2]
[319553800,1710850238302,-1774.07949015,0.00014,2]
[319553801,1710850238313,-3592.80520251,0.00014,2]
[319553802,1710850238323,-12279.08479749,0.00014,2]
[319553803,1710850238336,-772.60300918,0.00014,2]
[319553804,1710850238347,-14000.0,0.00014,2]
[319553806,1710850238359,-823.93944746,0.00014,2]
[319553807,1710850238370,-8273.60751573,0.00014,2]
[319553808,1710850238382,-5517.99643374,0.00014,2]
[319553809,1710850238391,-2884.58198926,0.00015,2]
[319553835,1710850240019,-296.86242569,0.00015,2]
[319553837,1710850240032,-788.17634678,0.00015,2]
[319553839,1710850240042,-643.24708674,0.00018,2]
[319553841,1710850240052,-7491.1210408,0.00018,2]
[319553843,1710850240062,-460.26448191,0.00018,2]
[319553845,1710850240074,-39.72551809,0.00018,2]
[319553847,1710850240084,-260.974263,0.00018553,2]
[319553850,1710850240094,-296.79548759,0.000189,2]
[319553851,1710850240103,-299.99,0.000189,4]
[319553853,1710850240113,-1081.37473132,0.000199,2]
[319553856,1710850240126,-513.01400007,0.000199,2]
[319553858,1710850240139,-274.8,0.000199,2]
[319553860,1710850240155,-2118.25914205,0.000199,2]
[319553866,1710850240232,-608.1311264,0.000199,2]
[319553871,1710850240265,-566.05,0.000199,2]
[319553878,1710850240325,-460.71492989,0.000199,2]
[319553880,1710850240334,-35528.06824941,0.000199,2]
[319553882,1710850240343,-757.11,0.0002069,2]
[319553884,1710850240353,-389.66660921,0.0002199,2]
[319553886,1710850240362,-163.05,0.00022558,2]
[319553888,1710850240372,-250.0,0.0002264,2]
[319553890,1710850240381,-250.0,0.00022641,2]
[319553892,1710850240390,-367.79,0.00022655,2]
[319553894,1710850240403,-200.0,0.00022658,2]
[319553896,1710850240412,-250.0,0.0002268,2]
[319553898,1710850240421,-23900.0,0.00022706,2]
[319553901,1710850240431,-150.0,0.00022707,2]
[319553904,1710850240441,-182.94,0.00022749,2]
[319553906,1710850240452,-150.0,0.00022759,2]
[319553909,1710850240465,-2381.0,0.000228,3]
[319553912,1710850240479,-195.28,0.00022813,2]
[319553914,1710850240489,-318.92,0.00022841,2]
[319553918,1710850240502,-500.0,0.00022906,2]
[319553921,1710850240514,-757.11,0.00022954,2]
[319553923,1710850240524,-250.0,0.00023,3]
[319553926,1710850240533,-150.0,0.00023037,2]
[319553929,1710850240544,-189.13,0.00023164,2]
[319553932,1710850240554,-260.974263,0.00023207,2]
[319553934,1710850240563,-339.55,0.00023242,10]
[319553936,1710850240573,-167.0,0.00023314,2]
[319553938,1710850240582,-322.68195414,0.00023772,2]
[319553940,1710850240592,-160.07,0.00023782,2]
[319553942,1710850240601,-155.50445492,0.0002382,2]
[319553944,1710850240610,-152.71807316,0.00023891,2]
[319553946,1710850240620,-155.18282372,0.00023953,2]
[319553948,1710850240629,-155.39364119,0.00024061,2]
[319553950,1710850240639,-154.153142,0.00024136,2]
[319553952,1710850240650,-333.67997804,0.00024375,2]
[319553954,1710850240660,-158.55200374,0.00024434,2]
[319553956,1710850240669,-426.05,0.00024499,2]
[319553958,1710850240679,-210.78638551,0.00024772,120]
[319553960,1710850240688,-7561.26661948,0.00024874,30]
[319553962,1710850240698,-330.0252022,0.00024874,7]
[319553964,1710850240708,-333.67997804,0.00024927,2]
[319553967,1710850240718,-300.0,0.00025,3]
[319553969,1710850240736,-333.67997804,0.0002513,2]
[319553971,1710850240745,-757.11,0.00025218,2]
[319553973,1710850240754,-7121.0,0.0002536,2]
[319553975,1710850240763,-155.18282372,0.00025551,2]
[319553977,1710850240773,-339.55,0.00025982,10]
[319553979,1710850240782,-333.67997804,0.00026114,2]
[319553981,1710850240792,-333.67997804,0.00026213,2]
[319553983,1710850240801,-151.0,0.00026312,2]
[319553985,1710850240810,-155.39364119,0.00026322,2]
[319553987,1710850240820,-152.0492547,0.00026335,2]
[319553989,1710850240829,-3883.99057794,0.00026383,2]
[319553990,1710850240838,-500.0,0.00026399,2]
[319553991,1710850240847,-500.0,0.00026399,2]
[319553992,1710850240857,-271.08005682,0.00026399,2]
[319553994,1710850240866,-442.76409281,0.00026399,2]
[319553996,1710850240875,-22627.89131018,0.000264,5]
[319553999,1710850240920,-580.68105521,0.000264,5]
[319554000,1710850240932,-932.534955,0.000264,5]
[319554001,1710850240943,-350.993967,0.000264,5]
[319554002,1710850240955,-2632.93000001,0.000264,5]
[319554003,1710850240966,-548.52217122,0.000264,5]
[319554017,1710850243420,-500.0,0.00019897,2]
[319554018,1710850243429,-500.0,0.00019897,2]
[319554019,1710850243438,-500.0,0.00019897,2]
[319554020,1710850243447,-631.40230629,0.00019897,2]
[319554021,1710850243456,-500.0,0.00019897,2]
[319554022,1710850243467,-500.0,0.00019897,2]
[319554024,1710850243476,-500.0,0.00019897,2]
[319554025,1710850243486,-500.0,0.00019897,2]
[319554026,1710850243496,-500.0,0.00019897,2]
[319554027,1710850243506,-2224.49836598,0.000264,5]
[319554028,1710850243518,-3070.99177313,0.000264,5]
[319554029,1710850243529,-88568.29305604,0.000264,5]
[319554030,1710850243540,-1235.08218069,0.000264,5]
[319554031,1710850243552,-926.38502705,0.000264,5]
[319554032,1710850243564,-499.51328506,0.000264,5]
[319554033,1710850243575,-3344.77062393,0.000264,5]
[319554034,1710850243586,-646.54714106,0.000264,5]
[319554035,1710850243624,-2935.5887768,0.000264,5]
[319554036,1710850243635,-134110.76806884,0.000264,5]
[319554037,1710850243646,-1118.72804581,0.000264,5]
[319554038,1710850243663,-17800.00000005,0.000264,5]
[319554039,1710850243674,-31603.51562208,0.000264,5]
[319554040,1710850243685,-39139.0000006,0.000264,5]
[319554041,1710850243696,-409259.66540561,0.000264,5]
[319554042,1710850243708,-711.66079676,0.000264,5]
[319554043,1710850243750,-339.955,0.000264,5]
[319554044,1710850243761,-3170.00365457,0.000264,5]
[319554045,1710850243772,-943.24512146,0.000264,5]
[319554046,1710850243784,-1909.90824921,0.000264,5]
[319554047,1710850243796,-1051.547,0.000264,5]
[319554048,1710850243811,-5052.60000032,0.000264,5]
[319554049,1710850243823,-10929.12283116,0.000264,5]
[319554050,1710850243833,-2002.74892002,0.000264,5]
[319554051,1710850243844,-3400.0,0.000264,5]
[319554052,1710850243855,-422.16321324,0.000264,5]
[319554053,1710850243866,-599.31971816,0.000264,5]
[319554054,1710850243882,-108391.06385809,0.000264,5]
[319554055,1710850243908,-1628.84709129,0.000264,5]
[319554056,1710850243944,-666.41,0.000264,5]
[319554057,1710850243958,-598.7559,0.000264,5]
[319554058,1710850243969,-397.00005046,0.000264,5]
[319554059,1710850243980,-313.17633,0.000264,5]
[319554060,1710850243991,-565.90754855,0.000264,5]
[319554061,1710850244003,-581.68999962,0.000264,5]
[319554062,1710850244014,-751.05023869,0.000264,5]
[319554063,1710850244025,-3431.24629291,0.000264,5]
[319554076,1710850246114,-58280.18013331,0.000264,5]
[319554077,1710850246126,-18886.71189463,0.000264,5]
[319554079,1710850246477,-6822.1,0.000264,5]
[319554080,1710850246496,-3946.5,0.000264,5]
[319554081,1710850246510,-7265.7,0.000264,5]
[319554082,1710850246521,-581.09772992,0.000264,5]
[319554083,1710850246532,-13984.49328121,0.000264,5]
[319554085,1710850246550,-48735.79776158,0.000264,5]
[319554087,1710850246560,-156.78245889,0.00026483,2]
[319554088,1710850246569,-155.18282372,0.00026547,2]
[319554090,1710850246578,-154.153142,0.0002664,2]
[319554092,1710850246587,-176.99758743,0.00026667,2]
[319554093,1710850246597,-302.0,0.00026755,4]
[319554095,1710850246607,-91.04677197,0.00026755,120]
[319554097,1710850246627,-69.02322803,0.00026755,120]
[319554099,1710850246636,-290.86465185,0.0002677,10]
[319554100,1710850246646,-150.0,0.00026877,120]
[319554102,1710850246657,-158.47718951,0.00026882,2]
[319554103,1710850246666,-214.46134286,0.00027,3]
[319554104,1710850246681,-135.53865714,0.00027,3]
[319554105,1710850246691,-861.52623286,0.00027,2]
[319554106,1710850246703,-516.35389505,0.00027,2]
[319554107,1710850246712,-166.22615634,0.00027,120]
[319554108,1710850246722,-333.67997804,0.00027056,2]
[319554109,1710850246730,-604.0,0.00027204,7]
[319554110,1710850246740,-1104.75587598,0.0002736,120]
[319554111,1710850246748,-158.47718951,0.00027376,2]
[319554112,1710850246758,-757.11,0.00027482,2]
[319554113,1710850246767,-426.05,0.00027561,2]
[319554114,1710850246776,-164.9477599,0.00027607,2]
[319554115,1710850246786,-260.974263,0.0002786,3]
[319554116,1710850246795,-1208.0,0.00027893,30]
[319554117,1710850246804,-155.39364119,0.00027898,2]
[319554118,1710850246813,-156.64752417,0.00027943,2]
[319554119,1710850246829,-154.153142,0.00028009,2]
[319554120,1710850246842,-154.153142,0.00028195,2]
[319554121,1710850246851,-158.47718951,0.00028278,2]
[319554122,1710850246861,-152.71807316,0.00028387,2]
[319554123,1710850246871,-3517.28594332,0.00028521,2]
[319554124,1710850246884,-366.70463453,0.00028521,2]
[319554125,1710850246894,-339.55,0.00028722,10]
[319554126,1710850246905,-829.82,0.00028985,2]
[319554127,1710850246915,-494.68257428,0.00028985,2]
[319554128,1710850246939,-537.69742572,0.00028985,2]
[319554129,1710850246949,-400.0,0.00029,3]
[319554130,1710850246958,-358.23185179,0.00029,2]
[319554131,1710850246970,-696.09066329,0.00029,2]
[319554132,1710850246980,-155.50445492,0.00029317,2]
[319554133,1710850246990,-158.47718951,0.00029594,2]
[319554134,1710850246999,-160.07,0.00029728,120]
[319554135,1710850247010,-19.13570952,0.00029746,2]
[319554136,1710850247029,-309.50920191,0.00029746,2]
[319554137,1710850247056,-428.46508857,0.00029746,2]
[319554138,1710850247066,-158.47718951,0.00029779,2]
[319554139,1710850247077,-1617.0405,0.00029899,2]
[319554140,1710850247086,-3361.5948,0.00029899,2]
[319554141,1710850247096,-153.02334127,0.000299,2]
[319554142,1710850247106,-185.78054243,0.0003,14]
[319554143,1710850247115,-6234.75303822,0.0003,120]
[319554144,1710850247127,-1289.40696178,0.0003,120]
[319554145,1710850247136,-155.5748886,0.0003,120]
[319554146,1710850247146,-941.58357753,0.0003,2]
[319554147,1710850247158,-2581.92760509,0.0003,7]
[319554148,1710850247168,-76047.0069668,0.0003,7]
[319554149,1710850247179,-2962.37636,0.0003,7]
[319554150,1710850247191,-1499.99999936,0.0003,7]
[319554151,1710850247203,-3355.4,0.0003,7]
[319554152,1710850247238,-17867.54322964,0.0003,7]
[319554153,1710850247369,-2073.29355406,0.0003,7]
[319554154,1710850247380,-1130.58870802,0.0003,7]
[319554158,1710850337282,-1379.56600173,0.00013898,2]
[319554159,1710850337309,-348.82198149,0.00013899,2]
[319554160,1710850337335,-5279.0888,0.000139,2]
[319554161,1710850337362,-13576.3998,0.000139,2]
[319554166,1710850365775,40062.707,0.000139,2]
[319554167,1710850380284,259.77773947,0.000139,2]
[319554168,1710850396303,216.48144956,0.000139,2]
[319554169,1710850414401,155.0,0.000139,2]
[319554170,1710850436292,155.0,0.000139,2]
[319554171,1710850454296,155.0,0.000139,2]
[319554173,1710850474301,155.0,0.000139,2]
[319554175,1710850498295,155.0,0.000139,2]
[319554176,1710850514294,155.0,0.000139,2]
[319554177,1710850530556,155.0,0.000139,2]
[319554178,1710850548316,213.88869735,0.000139,2]
[319554250,1710851432159,-1216.73937758,0.00019407,2]
[319554251,1710851432170,-296.79548759,0.00019408,2]
[319554252,1710851432180,-440.7574352,0.00019409,2]
[319554253,1710851432191,-506.42293512,0.0001941,2]
[319554254,1710851432203,-1492.69004989,0.0001941,2]
[319554255,1710851432228,-1970.50777672,0.0001941,2]
[319554256,1710851432238,-958.32905664,0.00019426,2]
[319554257,1710851432249,-31295.17765732,0.00019427,2]
[319554258,1710851432260,-150.79,0.00019846,2]
[319554259,1710851432275,-150.06,0.00019848,2]
[319554260,1710851432286,-150.64872994,0.0001998,2]
[319554261,1710851432297,-499.99,0.00020025,2]
[319554262,1710851432307,-849.82,0.00020025,2]
[319554263,1710851432316,-152.71858763,0.000201,2]
[319554264,1710851432327,-352.22463784,0.00020459,2]
[319554265,1710851432337,-150.99,0.00020459,2]
[319554266,1710851432346,-352.22463784,0.00020487,2]
[319554267,1710851432355,-157.9328639,0.00021008,2]
[319554268,1710851432365,-154.08049905,0.00021111,2]
[319554269,1710851432375,-150.64872994,0.00021268,2]
[319554270,1710851432385,-152.76000664,0.00021329,2]
[319554271,1710851432395,-152.29547308,0.00021331,2]
[319554272,1710851432404,-150.64872994,0.00022063,2]
[319554273,1710851432414,-352.22463784,0.00022074,2]
[319554274,1710851432424,-164.3161095,0.00022217,2]
[319554275,1710851432434,-157.9328639,0.00022626,2]
[319554276,1710851432443,-150.64872994,0.00022784,2]
[319554277,1710851432454,-352.22463784,0.000229,2]
[319554278,1710851432465,-250.0,0.00023,3]
[319554279,1710851432474,-150.64872994,0.00023119,2]
[319554280,1710851432485,-150.64872994,0.00023302,2]
[319554282,1710851432494,-150.64872994,0.00023615,2]
[319554283,1710851432504,-640.49,0.00023659,2]
[319554284,1710851432514,-152.92514681,0.00023812,2]
[319554285,1710851432529,-738.0,0.00024,3]
[319554286,1710851432539,-6920.073,0.00024,2]
[319554287,1710851432549,-352.22463784,0.00024302,2]
[319554290,1710851432660,-352.22463784,0.00024505,2]
[319554291,1710851432669,-152.71858763,0.00024524,2]
[319554292,1710851432679,-157.9328639,0.00024685,2]
[319554293,1710851432690,-151.292129,0.000247,2]
[319554294,1710851432699,-2500.0,0.000247,2]
[319554295,1710851432710,-2558.91,0.00024856,2]
[319554296,1710851432719,-11248.25096146,0.00024873,2]
[319554297,1710851432732,-359.78269068,0.00024873,2]
[319554298,1710851432749,-627.62684945,0.00024873,2]
[319554299,1710851432761,-11664.33949841,0.00024873,2]
[319554300,1710851432775,-152.71858763,0.00024919,2]
[319554301,1710851432785,-200.0,0.0002493,2]
[319554302,1710851432795,-300.0,0.00025,3]
[319554303,1710851432805,-481.56,0.0002501,2]
[319554304,1710851432814,-166.45998503,0.00025043,2]
[319554305,1710851432827,-3071.4,0.00025106,2]
[319554306,1710851432837,-2001.99,0.00025106,2]
[319554307,1710851432847,-249.53192925,0.00025151,10]
[319554308,1710851432869,-26.34807075,0.00025151,10]
[319554309,1710851432879,-352.22463784,0.00025334,2]
[319554310,1710851432889,-152.76000664,0.00025524,2]
[319554311,1710851432901,-640.49,0.00025923,2]
[319554312,1710851432911,-160.07,0.00025941,120]
[319554313,1710851432922,-350.81,0.00025975,2]
[319554314,1710851432933,-352.22463784,0.00026033,2]
[319554315,1710851432943,-162.73,0.00026076,2]
[319554316,1710851432953,-424.26,0.0002625,2]
[319554317,1710851432963,-61.12464004,0.00026319,2]
[319554318,1710851433023,-188.87535996,0.00026319,2]
[319554319,1710851433034,-283.94,0.00026342,2]
[319554320,1710851433044,-3641.91755671,0.00026349,2]
[319554321,1710851433054,-260.79916281,0.00026349,2]
[319554322,1710851433064,-358.08244329,0.0002635,2]
[319554323,1710851433074,-1165.04,0.00026358,2]
[319554324,1710851433085,-250.0,0.00026361,2]
[319554325,1710851433096,-250.0,0.00026436,2]
[319554326,1710851433107,-150.64872994,0.00026464,2]
[319554327,1710851433117,-254.21,0.00026624,2]
[319554328,1710851433128,-152.76000664,0.00026682,2]
[319554329,1710851433138,-159.41,0.0002671,2]
[319554330,1710851433148,-156.64752417,0.00026869,2]
[319554331,1710851433157,-153.82,0.00026935,2]
[319554332,1710851433167,-350.0,0.00027,3]
[319554333,1710851433178,-352.22463784,0.0002704,2]
[319554334,1710851433188,-220.19,0.00027104,120]
[319554335,1710851433197,-152.76000664,0.00027236,2]
[319554336,1710851433206,-1267.12,0.00027306,2]
[319554337,1710851433217,-352.22463784,0.00027396,2]
[319554338,1710851433227,-153.82,0.00027402,2]
[319554339,1710851433237,-352.22463784,0.00027484,2]
[319554340,1710851433247,-154.08049905,0.00027612,2]
[319554341,1710851433257,-153.82,0.0002787,2]
[319554342,1710851433267,-275.88,0.00027891,10]
[319554343,1710851433281,-150.64872994,0.0002806,2]
[319554344,1710851433292,-481.56,0.00028137,2]
[319554345,1710851433302,-352.22463784,0.00028175,2]
[319554346,1710851433313,-152.92514681,0.00028184,2]
[319554347,1710851433323,-640.49,0.00028187,2]
[319554348,1710851433332,-152.29547308,0.00028231,2]
[319554349,1710851433342,-153.82,0.00028338,2]
[319554350,1710851433352,-350.81,0.00028715,2]
[319554351,1710851433361,-152.71858763,0.00028731,2]
[319554352,1710851433371,-185.70139702,0.00028737,2]
[319554353,1710851433381,-352.22463784,0.00028745,2]
[319554354,1710851433391,-150.64872994,0.00028772,2]
[319554355,1710851433402,-152.71858763,0.0002892,2]
[319554356,1710851433412,-942.73144253,0.0002899,2]
[319554357,1710851433425,-6575.0,0.0002899,2]
[319554358,1710851433436,-18931.75302525,0.0002899,2]
[319554359,1710851433456,-752.35031756,0.0002899,2]
[319554360,1710851433476,-673.27619946,0.0002899,2]
[319554361,1710851433487,-1644.5631562,0.0002899,2]
[319554411,1710851438164,-13043.54868236,0.0002899,2]
[319554415,1710851438174,-167.45319043,0.00029218,2]
[319554419,1710851438183,-152.92514681,0.00029235,2]
[319554423,1710851438193,-643.24708674,0.00029398,2]
[319554427,1710851438202,-150.0,0.00029658,2]
[319554430,1710851438212,-150.0,0.00029731,2]
[319554433,1710851438221,-298.15177781,0.00029793,2]
[319554436,1710851438231,-1279.7689,0.000299,2]
[319554439,1710851438241,-355.2704,0.000299,2]
[319554441,1710851438250,-1575.95194579,0.00029998,2]
[319554444,1710851438259,-11764.46811275,0.0003,7]
[319554446,1710851438268,-2224.11157,0.0003,2]
[319554448,1710851438281,-150.64872994,0.00030193,7]
[319554450,1710851438290,-152.29547308,0.0003039,7]
[319554452,1710851438300,-640.49,0.00030451,2]
[319554454,1710851438310,-352.22463784,0.00030494,7]
[319554456,1710851438321,-150.64872994,0.0003057,7]
[319554458,1710851438331,-275.88,0.0003063,10]
[319554460,1710851438341,-150.0,0.00030716,120]
[319554462,1710851438351,-152.92514681,0.00030945,7]
[319554463,1710851438362,-150.0,0.00030999,2]
[319554464,1710851438372,-150.64872994,0.00031262,7]
[319554465,1710851438382,-481.56,0.00031263,2]
[319554466,1710851438391,-350.81,0.00031455,2]
[319554467,1710851438401,-352.22463784,0.00031455,7]
[319554468,1710851438410,-6215.0,0.00031597,2]
[319554469,1710851438420,-152.76000664,0.00031609,7]
[319554470,1710851438430,-152.76000664,0.00031628,7]
[319554471,1710851438441,-154.08049905,0.00032456,7]
[319554472,1710851438450,-1000.0,0.000325,2]
[319554473,1710851438459,-6918.8079,0.00032603,2]
[319554474,1710851438469,-7790.1667,0.00032603,2]
[319554475,1710851438478,-640.49,0.00032715,2]
[319554476,1710851438489,-1296.0,0.00032875,5]
[319554477,1710851438498,-15080.59663368,0.0003288,21]
[319554478,1710851438507,-157.9328639,0.00032886,7]
[319554479,1710851438517,-185.24,0.0003302,120]
[319554480,1710851438530,-151.0,0.00033084,2]
[319554481,1710851438541,-250.49088,0.00033084,2]
[319554482,1710851438551,-164.3161095,0.00033144,7]
[319554483,1710851438561,-275.88,0.0003337,10]
[319554484,1710851438571,-159.41,0.00033388,2]
[319554485,1710851438581,-158.51,0.000335,2]
[319554486,1710851438590,-158.51,0.000335,2]
[319554487,1710851438600,-152.92514681,0.00033592,7]
[319554488,1710851438610,-302.0,0.0003364,4]
[319554489,1710851438619,-352.22463784,0.00033997,7]
[319554492,1710851438629,-150.64872994,0.00034068,7]
[319554494,1710851438639,-604.0,0.00034205,7]
[319554495,1710851438648,-481.56,0.00034389,2]
[319554496,1710851438657,-185.70139702,0.00034408,7]
[319554497,1710851438667,-154.11102109,0.00034422,7]
[319554498,1710851438677,-150.64872994,0.00034426,7]
[319554499,1710851438686,-157.9328639,0.00034456,7]
[319554500,1710851438695,-150.0,0.00034556,120]
[319554501,1710851438705,-3305.0,0.00034719,2]
[319554502,1710851438715,-152.76000664,0.00034757,7]
[319554503,1710851438724,-152.92514681,0.00034922,7]
[319554504,1710851438734,-640.49,0.00034979,2]
[319554505,1710851438743,-2224.11158,0.00035,2]
[319554506,1710851438752,-1208.0,0.00035071,30]
[319554507,1710851438762,-150.0,0.00036,2]
[319554508,1710851438771,-178.31,0.00036,2]
[319554509,1710851438787,-152.76000664,0.00036106,7]
[319554510,1710851438797,-275.88,0.0003611,10]
[319554511,1710851438807,-158.29036305,0.00036238,7]
[319554512,1710851438818,-249.61449719,0.00036509,4]
[319554513,1710851438828,-211.04874719,0.00036511,3]
[319554514,1710851438838,-150.64872994,0.00036525,7]
[319554515,1710851438847,-200.0,0.00036546,10]
[319554516,1710851438857,-800.0,0.00036546,10]
[319554517,1710851438867,-200.0,0.00036546,10]
[319554518,1710851438876,-178.31,0.00036548,2]
[319554519,1710851438886,-1031.99660858,0.000366,2]
[319554520,1710851438896,-1031.9966085,0.000366,2]
[319554521,1710851438906,-1031.9966085,0.000366,2]
[319554522,1710851438916,-1031.9966085,0.000366,2]
[319554523,1710851438926,-1165.06842088,0.000366,2]
[319554524,1710851438935,-1165.06842088,0.000366,2]
[319554525,1710851438945,-1165.06842088,0.000366,2]
[319554526,1710851438957,-1165.06842088,0.000366,2]
[319554527,1710851438967,-14940.867646,0.000367,2]